Workbook

Sheet выдача на 5 дней
A1: Меню дополнительного питания (витаминизации) обучающихся МОУ
A2: У Т В Е Р Ж Д А Ю: | F2: С О Г Л А С О В А Н О:
A3: Директор ООО "Союз-К" | F3: Директор МБОУ "Куликовская СШ"
A4: ______________________ Д.Г. Киселев | F4: ____________________ О.В. Перегудова
A5: 1 Вариант
A6: Прием пищи, наименование блюда | B6: Масса порции | C6: Пищевые вещества | F6: Энергети-ческая ценность, ккал | G6: Технологическая документация
C7: Белки, г | D7: Жиры, г | E7: Углеводы, г
A8: Кондитерские изделия | B8: 100 | C8: 6.30 | D8: 6.80 | E8: 32.20 | F8: 218.80 | G8: Сборник рецептур или ТТК
A9: Сок яблочный | B9: 200 | C9: 0.20 | D9: 0.20 | E9: 18.00 | F9: 112.70 | G9: Сборник рецептур или ТТК
A10: Итого за прием пищи: | B10: =B9+B8 -> 300.00 | C10: =C9+C8 -> 6.50 | D10: =D9+D8 -> 7.00 | E10: =E9+E8 -> 50.20 | F10: =F9+F8 -> 331.50
A11: 2 Вариант
A12: Прием пищи, наименование блюда | B12: Масса порции | C12: Пищевые вещества | F12: Энергети-ческая ценность, ккал | G12: Технологическая документация
C13: Белки, г | D13: Жиры, г | E13: Углеводы, г
A14: Кондитерские изделия | B14: 100 | C14: 6.30 | D14: 6.80 | E14: 32.20 | F14: 218.80 | G14: Сборник рецептур или ТТК
A15: Фрукты свежие | B15: 200 | C15: 0.90 | D15: 0.90 | E15: 19.00 | F15: 91.20 | G15: Сборник рецептур или ТТК
A16: Итого за прием пищи: | B16: =B15+B14 -> 300 | C16: =C15+C14 -> 7.2 | D16: =D15+D14 -> 7.70 | E16: =E15+E14 -> 51.20 | F16: =F15+F14 -> 310.00
A17: 3 Вариант
A18: Прием пищи, наименование блюда | B18: Масса порции | C18: Пищевые вещества | F18: Энергети-ческая ценность, ккал | G18: Технологическая документация
C19: Белки, г | D19: Жиры, г | E19: Углеводы, г
A20: Кондитерские изделия | B20: 100 | C20: 6.30 | D20: 6.80 | E20: 32.20 | F20: 218.80 | G20: Сборник рецептур или ТТК
A21: Сок яблочный | B21: 200 | C21: 0.20 | D21: 0.20 | E21: 18.00 | F21: 112.70 | G21: Сборник рецептур или ТТК
A22: Итого за прием пищи: | B22: =B20+B21 -> 300 | C22: =C21+C20 -> 6.50 | D22: =D20+D21 -> 7.00 | E22: =E20+E21 -> 50.20 | F22: =F20+F21 -> 331.50
A23: 4 Вариант
A24: Прием пищи, наименование блюда | B24: Масса порции | C24: Пищевые вещества | F24: Энергети-ческая ценность, ккал | G24: Технологическая документация
C25: Белки, г | D25: Жиры, г | E25: Углеводы, г
A26: Кондитерские изделия | B26: 150 | C26: 6.30 | D26: 6.80 | E26: 32.20 | F26: 218.80 | G26: Сборник рецептур или ТТК
A27: Фрукты свежие | B27: 150 | C27: 0.68 | D27: 0.68 | E27: 14.30 | F27: 68.40 | G27: Сборник рецептур или ТТК
A28: Итого за прием пищи: | B28: =B26+B27 -> 300 | C28: =C26+C27 -> 6.98 | D28: =D26+D27 -> 7.48 | E28: =E26+E27 -> 46.50 | F28: =F26+F27 -> 287.20
A29: 5 Вариант
A30: Прием пищи, наименование блюда | B30: Масса порции | C30: Пищевые вещества | F30: Энергети-ческая ценность, ккал | G30: Технологическая документация
C31: Белки, г | D31: Жиры, г | E31: Углеводы, г
A32: Кондитерские изделия | B32: 150 | C32: 6.30 | D32: 6.80 | E32: 32.20 | F32: 218.80 | G32: Сборник рецептур или ТТК
A33: Сок яблочный | B33: 200 | C33: 0.20 | D33: 0.20 | E33: 18.00 | F33: 112.70 | G33: Сборник рецептур или ТТК
A34: Итого за прием пищи: | B34: =B32+B33 -> 350 | C34: =C32+C33 -> 6.50 | D34: =D32+D33 -> 7.00 | E34: =E32+E33 -> 50.20 | F34: =F32+F33 -> 331.50
A35: ИТОГО ПО ПРИМЕРНОМУ МЕНЮ
A36: Итого | C36: б | D36: ж | E36: уг | F36: ккал
A37: Итого за период | C37: =C10+C16+C22+C28+C34 -> 33.7 | D37: =D10+D16+D22+D28+D34 -> 36.2 | E37: =E10+E16+E22+E28+E34 -> 248.3 | F37: =F10+F16+F22+F28+F34 -> 1,591.7
A38: Среднее значение за период | C38: =C37/5 -> 6.7 | D38: =D37/5 -> 7.2 | E38: 49.7 | F38: 318.3

Sheet выдача на 7 дней
A1: Меню дополнительного питания (витаминизации) обучающихся МОУ
A2: У Т В Е Р Ж Д А Ю: | F2: С О Г Л А С О В А Н О:
A3: Директор ООО "Союз-К" | F3: Директор МБОУ "Куликовская СШ"
A4: ______________________ Д.Г. Киселев | F4: ____________________ О.В. Перегудова
A5: 1 Вариант
A6: Прием пищи, наименование блюда | B6: Масса порции | C6: Пищевые вещества | F6: Энергети-ческая ценность, ккал | G6: Технологическая документация
C7: Белки, г | D7: Жиры, г | E7: Углеводы, г
A8: Кондитерские изделия | B8: 100 | G8: Сборник рецептур или ТТК
A9: Сок яблочный | B9: 200 | G9: Сборник рецептур или ТТК
A10: Итого за прием пищи: | B10: 300 | C10: 7.06 | D10: 27.99 | E10: 91.92 | F10: 648.45
A11: 2 Вариант
A12: Прием пищи, наименование блюда | B12: Масса порции | C12: Пищевые вещества | F12: Энергети-ческая ценность, ккал | G12: Технологическая документация
C13: Белки, г | D13: Жиры, г | E13: Углеводы, г
A14: Кондитерские изделия | B14: 100 | G14: Сборник рецептур или ТТК
A15: Сок яблочный | B15: 200 | G15: Сборник рецептур или ТТК
A16: Фрукты свежие | B16: 200 | G16: Сборник рецептур или ТТК
A17: Итого за прием пищи: | B17: 500 | C17: 10.8 | D17: 27.10 | E17: 133.20 | F17: 668.30
A18: 3 Вариант
A19: Прием пищи, наименование блюда | B19: Масса порции | C19: Пищевые вещества | F19: Энергети-ческая ценность, ккал | G19: Технологическая документация
C20: Белки, г | D20: Жиры, г | E20: Углеводы, г
A21: Кондитерские изделия | B21: 100 | G21: Сборник рецептур или ТТК
A22: Сок яблочный | B22: 200 | G22: Сборник рецептур или ТТК
A23: Фрукты свежие | B23: 150 | G23: Сборник рецептур или ТТК
A24: Итого за прием пищи: | B24: 520 | C24: 8.10 | D24: 25.90 | E24: 91.90 | F24: 667.20
A25: 4 Вариант
A26: Прием пищи, наименование блюда | B26: Масса порции | C26: Пищевые вещества | F26: Энергети-ческая ценность, ккал | G26: Технологическая документация
C27: Белки, г | D27: Жиры, г | E27: Углеводы, г
A28: Кондитерские изделия | B28: 200 | G28: Сборник рецептур или ТТК
A29: Фрукты свежие (яблоко) | B29: 150 | G29: Сборник рецептур или ТТК
A30: Итого за прием пищи: | B30: 350 | C30: 16.60 | D30: 38.60 | E30: 142.30 | F30: 988.40
A31: 5 Вариант
A32: Прием пищи, наименование блюда | B32: Масса порции | C32: Пищевые вещества | F32: Энергети-ческая ценность, ккал | G32: Технологическая документация
C33: Белки, г | D33: Жиры, г | E33: Углеводы, г
A34: Кондитерские изделия | B34: 50 | G34: Сборник рецептур или ТТК
A35: Сок яблочный | B35: 200 | G35: Сборник рецептур или ТТК
A36: Фрукты свежие | B36: 150 | G36: Сборник рецептур или ТТК
A37: Итого за прием пищи: | B37: 500 | C37: 9.20 | D37: 29.10 | E37: 80.20 | F37: 623.30
A38: 6 Вариант
A39: Прием пищи, наименование блюда | B39: Масса порции | C39: Пищевые вещества | F39: Энергети-ческая ценность, ккал | G39: Технологическая документация
C40: Белки, г | D40: Жиры, г | E40: Углеводы, г
A41: Кондитерские изделия | B41: 200 | G41: Сборник рецептур или ТТК
A42: Сок яблочный | B42: 200 | G42: Сборник рецептур или ТТК
A43: Итого за прием пищи: | B43: 400 | C43: 17.00 | D43: 38.20 | E43: 147.60 | F43: 1,003.50
A44: 7 Вариант
A45: Прием пищи, наименование блюда | B45: Масса порции | C45: Пищевые вещества | F45: Энергети-ческая ценность, ккал | G45: Технологическая документация
C46: Белки, г | D46: Жиры, г | E46: Углеводы, г
A47: Кондитерские изделия | B47: 100 | G47: Сборник рецептур или ТТК
A48: Сок яблочный | B48: 200 | G48: Сборник рецептур или ТТК
A49: Фрукты свежие | B49: 200 | G49: Сборник рецептур или ТТК
A50: Итого за прием пищи: | B50: 500 | C50: 10.8 | D50: 27.10 | E50: 133.20 | F50: 668.30
A51: ИТОГО ПО ПРИМЕРНОМУ МЕНЮ
A52: Итого | C52: б | D52: ж | E52: уг | F52: ккал
A53: Итого за период | C53: =C10+C17+C24+C30+C37+C43+C50 -> 79.6 | D53: =D10+D17+D24+D30+D37+D43+D50 -> 214.0 | E53: 820.3 | F53: 5,267.5
A54: Среднее значение за период | C54: =C53/7 -> 11.4 | D54: =D53/7 -> 30.6 | E54: 117.2 | F54: 752.5
